Cogmind - Beta 16 @@@ ROGUE MODE // 2025.11.16 @ 22:43:23 Player: Red Box Result: Destroyed by HO-1YP(R) with Subdweller Machine Gun Performance ------------- Evolutions (0) 0 Regions Visited (3) 600 Robots Destroyed (37) 185 Value Destroyed (1115) 1115 Prototype IDs (14) 280 Alien Tech Used (0) 0 Bonus (0) 0 TOTAL SCORE: 2180 Bonus ------- None Cogmind --------- Core Integrity 0/250 Matter 265/300 Energy 77/200 System Corruption 0% Temperature Cool (6) Movement Rolling (130) Ox2 Location -10/Subcaves Parts ------- > --- POWER (1) -------- Subdweller Power Source > --- PROPULSION (2) --- Light Treads Subdweller Monowheel > --- UTILITY (2) ------ High-capacity Storage Unit Hardened Light Armor Plating > --- WEAPON (2) ------- Spread Laser Spread Laser > --- INVENTORY (20) --- Spiked Treads Flightbrick Hardened Light Armor Plating Hardened Light Armor Plating Makeshift Kinetic Plating Cobbler Unit Power Bank Spread Laser Autogun Autogun Subdweller Machine Gun Subdweller Machine Gun Barrage Gun Rocket Launcher Makeshift Hammer Peak State ------------ > --- POWER ------------ Subdweller Power Source > --- PROPULSION ------- Light Treads Wheel > --- UTILITY ---------- High-capacity Storage Unit Hardened Light Armor Plating > --- WEAPON ----------- Spread Laser Makeshift Hammer > --- INVENTORY -------- Spiked Treads Subdweller Monowheel Flightbrick Hardened Light Armor Plating Hardened Light Armor Plating Makeshift Kinetic Plating Cobbler Unit Spread Laser Spread Laser Spread Laser Autogun Autogun Subdweller Machine Gun Subdweller Machine Gun Barrage Gun Rocket Launcher [Rating: 20] Favorites ----------- Power Ion Engine Engine Ion Engine Propulsion Aluminum Leg Treads Light Treads Leg Aluminum Leg Wheel Wheel Utility High-capacity Storage Unit Device Heat Sink Storage High-capacity Storage Unit Protection Hardened Light Armor Plating Weapon Spread Laser Energy Gun Spread Laser Ballistic Gun Autogun Launcher Rocket Launcher Impact Weapon Makeshift Hammer Slashing Weapon Mining Claw Build | -11 -10 -10 -10 ------- Run | Yrd Mat Min Sub Slots Evolved . | . . . . Power . | . . . . Propulsion . | . . . . Utility . | . . . . Weapon . | . . . . Parts Attached 38 | 7 20 1 10 Power 4 | 1 2 . 1 Engine 4 | 1 2 . 1 Core . | . . . . Reactor . | . . . . Propulsion 11 | 2 6 . 3 Treads 3 | . 1 . 2 Leg 6 | 2 4 . . Wheel 2 | . 1 . 1 Hover . | . . . . Flight . | . . . . Utility 8 | 2 5 1 . Device 2 | 1 1 . . Storage 4 | 1 3 . . Processor . | . . . . Hackware . | . . . . Protection 2 | . 1 1 . Artifact . | . . . . Weapon 15 | 2 7 . 6 Energy Gun 5 | . 4 . 1 Energy Cannon . | . . . . Ballistic Gun 7 | 2 2 . 3 Ballistic Cannon . | . . . . Launcher 1 | . . . 1 Special Weapon . | . . . . Impact Weapon 1 | . . . 1 Slashing Weapon 1 | . 1 . . Piercing Weapon . | . . . . Special Melee Weapon . | . . . . Unidentified Prototypes . | . . . . Parts Lost 3 | . 1 . 2 Power 1 | . 1 . . Propulsion 1 | . . . 1 Utility . | . . . . Weapon 1 | . . . 1 Highest Loss Streak 1 | . 1 . 1 To Critical Strikes . | . . . . Average Backups 14 | 4 11 19 17 Power . | . . . . Propulsion 3 | 3 3 3 2 Utility 3 | . 2 5 4 Weapon 7 | . 5 11 9 Tool/Special . | . . . . Unused Backups 16 | . 3 . 13 Power . | . . . . Propulsion 3 | . . . 3 Utility 5 | . . . 5 Weapon 8 | . 3 . 5 Tool/Special . | . . . . Average Slot Usage (%) 97 | . 95 100 100 Engine 12 | . 10 14 14 Treads 8 | . 2 14 14 Leg 11 | . 23 . . Wheel 8 | . 2 14 13 Device 6 | . 13 . . Storage 14 | . 14 14 14 Protection 7 | . . 13 14 Energy Gun 10 | . 20 . 2 Ballistic Gun 14 | . 5 28 19 Slashing Weapon 2 | . 2 . 4 Peak Build Rating 20 | 9 12 13 20 Average Rating 12 | 6 10 12 16 On Entrance 8 | . 9 12 13 Avg Prop Armor Cover (%) 9 | . 11 9 9 Naked Turns . | . . . . Heaviest Build 58 | 13 52 56 58 Greatest Support 20 | 20 20 10 20 Greatest Overweight (x) 5 | 2 5 5 5 Average Overweight (x) 3 | . 1 5 4 Largest Inventory Capacity 20 | 8 20 20 20 Average Capacity 16 | 7 12 20 20 Most Carried 20 | 6 19 20 20 Average Carried 15 | 4 11 19 19 Final Capacity 20 | 8 20 20 20 Final Carried 20 | 6 19 20 19 Class Distribution -------------------- 85% | Mutant 14% | Scavenger-Mutant Dominant Class ---------------- Mutant | -10/Materials Mutant | -10/Mines Mutant | -10/Subcaves Resources | -11 -10 -10 -10 ----------- Run | Yrd Mat Min Sub Matter Collected 1345 | 330 503 130 382 Remotely . | . . . . Salvage Created 1206 | 138 427 202 439 Parts 83 | 9 29 13 32 Haulers Intercepted 2 | . 2 . . Recyclers Shooed 1 | 1 . . . Parts Field Recycled . | . . . . Retrieved Matter . | . . . . Parts Self-Destructed 8 | . . . 8 Prevented . | . . . . Parts Restored . | . . . . Kills | -11 -10 -10 -10 ------- Run | Yrd Mat Min Sub Combat Hostiles Destroyed 29 | . 10 7 12 Guns 28 | . 10 7 11 AOE 1 | . . . 1 Classes Destroyed 7 | 2 3 1 1 Tunneler 3 | 3 . . . Hauler 2 | . 2 . . Recycler 1 | 1 . . . Watcher 2 | . 2 . . Swarmer 3 | . . 3 . Grunt 15 | . 10 4 1 Subdweller 11 | . . . 11 Best Kill Streak 3 | 2 2 3 3 Combat Bots Only 3 | . 2 3 3 Max Kills in Single Turn 1 | 1 1 1 1 Gunslinging . | . . . . Exploded 1 | . . . 1 Melee . | . . . . Uniques/NPCs Destroyed . | . . . . Combat | -11 -10 -10 -10 -------- Run | Yrd Mat Min Sub Hostile Shots Fired 100 | . 32 22 46 Missed 26 | . 5 8 13 Hits 74 | . 27 14 33 Projectile 74 | . 27 14 33 Critical Strikes 1 | . 1 . . Damage Taken 1175 | . 319 160 696 Core 255 | . 47 18 190 Absorbed by Shields . | . . . . Core Remaining (%) 100 | 100 . . . Volleys Fired 94 | 10 34 15 35 Largest 2 | 2 2 2 2 Hottest 130 | 40 130 46 130 Shots Fired 183 | 20 68 30 65 Gun 182 | 20 68 30 64 Cannon . | . . . . Launcher 1 | . . . 1 Special . | . . . . Kinetic 94 | 20 . 30 44 Thermal 88 | . 68 . 20 Explosive 1 | . . . 1 Electromagnetic . | . . . . Robot Hit Streak 20 | 2 13 15 20 Robot Miss Streak 8 | 4 8 1 5 Penetration Max . | . . . . Secondary Targets 1 | . . 1 . Max Gunslinging Chain 1 | . . 1 . Shots Hit Robots 123 | 7 45 22 49 Core Hits 110 | 4 54 10 42 Critical Kills 2 | . . . 2 Critical Parts Destroyed . | . . . . Critical Strikes 2 | . . . 2 Destroy 2 | . . . 2 Melee Attacks 66 | . 29 . 37 Impact 15 | . . . 15 Slashing 51 | . 29 . 22 Piercing . | . . . . Sneak Attacks . | . . . . Combat Hostiles . | . . . . Follow-up Attacks . | . . . . Damage Inflicted 1948 | 95 573 361 919 Guns 1865 | 95 573 361 836 Cannons . | . . . . Explosions 83 | . . . 83 Melee . | . . . . Ramming . | . . . . Kinetic 943 | 95 . 361 487 Thermal 922 | . 573 . 349 Explosive 83 | . . . 83 Electromagnetic . | . . . . Impact . | . . . . Slashing . | . . . . Piercing . | . . . . Highest Corruption . | . . . . Average Corruption . | . . . . Corruption Purged . | . . . . Corruption Blocked . | . . . . Overload Shots . | . . . . Overflow Damage . | . . . . Projectiles . | . . . . Explosions . | . . . . Melee . | . . . . Knockbacks . | . . . . Impact . | . . . . Kinetic . | . . . . Secondary . | . . . . Self-Inflicted Damage . | . . . . Shots . | . . . . Rammed . | . . . . Targets Rammed . | . . . . Kicked . | . . . . Crushed . | . . . . Highest Temperature 551 | . 551 78 63 Average Temperature 96 | . 123 26 24 Received Heat Transfer 429 | . 192 63 174 Effects 4 | . 4 . . Shutdowns 1 | . 1 . . Energy Bleed 2 | . 2 . . Matter Decay 1 | . 1 . . Siege Activations . | . . . . Martial Activations . | . . . . Shielding Activations . | . . . . Robots Disrupted . | . . . . Combat Hostiles . | . . . . Robots Corrupted . | . . . . Combat Hostiles . | . . . . Parts Fried . | . . . . Impact Corruptions . | . . . . Robots Melted . | . . . . Combat Hostiles . | . . . . Parts Melted 1 | . . . 1 Heat Transferred 1284 | . 849 . 435 Parts Sabotaged . | . . . . Parts Stolen . | . . . . Parts Stripped . | . . . . Power Chain Reactions . | . . . . Alert | -11 -10 -10 -10 ------- Run | Yrd Mat Min Sub Maximum Alert Level . | . . . . Low Security (%) 100 | 100 100 100 . Level 1 . | . . . . Level 2 . | . . . . Level 3 . | . . . . Level 4 . | . . . . Level 5 . | . . . . High Security . | . . . . Max Security . | . . . . Peak Influence 87 | 5 87 70 . Initial 10 | . . 10 . Average 13 | 1 13 13 . Influence Increases 651 | 20 396 205 30 Destroy 0b10 Robot/C 360 | . 200 140 20 Destroy 0b10 Robot/NC 40 | 20 20 . . Destroy Leader 88 | . 48 30 10 Successful Hack 44 | . 39 5 . Select Force Hacks 60 | . 60 . . Disable Machine 30 | . . 30 . Destroy Structure 14 | . 14 . . Lose Combat Pursuer 15 | . 15 . . Influence Decreases 651 | 20 368 233 30 Entered New Map 18 | . . 18 . Time Decay 623 | 20 358 215 30 Lost Part 10 | . 10 . . Squads Dispatched 6 | . 6 . . Investigation 5 | . 5 . . Extermination . | . . . . Reinforcement 1 | . 1 . . Assault . | . . . . Garrison . | . . . . Intercept . | . . . . Searches Triggered . | . . . . Construction Impeded . | . . . . Haulers Reinforced . | . . . . Active Scanning Responses . | . . . . Cargo Convoy Interrupts . | . . . . Stealth | -11 -10 -10 -10 --------- Run | Yrd Mat Min Sub Distress Signals 2 | . 2 . . Communications Jammed . | . . . . Distress Signals . | . . . . Times Spotted 40 | . 19 7 14 Peak Tracking Total 3 | . 3 3 3 Tactical Retreats 1 | . 1 . . Traps | -11 -10 -10 -10 ------- Run | Yrd Mat Min Sub Traps Triggered 1 | . 1 . . Indirectly . | . . . . Trap Hack Attempts . | . . . . Triggered . | . . . . Disarmed . | . . . . Reprogrammed . | . . . . Reused . | . . . . Traps Extracted . | . . . . Installed . | . . . . Triggered . | . . . . Machines | -11 -10 -10 -10 ---------- Run | Yrd Mat Min Sub Machines Disabled 3 | . . 2 1 Max in Single Turn 1 | . . 1 1 Machines Repaired . | . . . . Machines Dismantled . | . . . . Machines Sabotaged . | . . . . Overloaded Fab Kills . | . . . . Hacking | -11 -10 -10 -10 --------- Run | Yrd Mat Min Sub Machines Accessed 11 | . 9 1 1 Terminals 8 | . 7 1 . Fabricators . | . . . . Repair Stations . | . . . . Recycling Units 2 | . 2 . . Scanalyzers . | . . . . Garrison Access . | . . . . Total Hacks 45 | . 42 2 1 Successful 21 | . 19 1 1 Failed 24 | . 23 1 . Catastrophic 2 | . 2 . . Database Lockouts . | . . . . Manual 39 | . 36 3 . Terminals 37 | . 35 2 . Fabricators . | . . . . Repair Stations . | . . . . Recycling Units 7 | . 7 . . Scanalyzers . | . . . . Garrison Access . | . . . . Terminal Hacks 10 | . 8 1 1 Robot Analysis 6 | . 5 1 . Prototype ID Bank 1 | . 1 . . Terminal Index 1 | . 1 . . Locate Traps 1 | . 1 . . Proto ID Catalog 1 | . . . 1 Fabricator Hacks . | . . . . Repair Station Hacks . | . . . . Recycling Unit Hacks 2 | . 2 . . Retrieve Components 2 | . 2 . . Scanalyzer . | . . . . Garrison Access Hacks . | . . . . Unauthorized Hacks 9 | . 9 . . Terminals 7 | . 7 . . Track 1 | . 1 . . Assimilate 3 | . 3 . . Botnet 2 | . 2 . . Operators 1 | . 1 . . Fabricators . | . . . . Repair Stations . | . . . . Recycling Units 2 | . 2 . . Tunnel 2 | . 2 . . Scanalyzers . | . . . . Garrison Access . | . . . . Data Cores Recovered . | . . . . Used . | . . . . Hacking Detections 10 | . 9 1 . Full Trace Events 3 | . 3 . . Feedback Events . | . . . . Feedback Blocked . | . . . . Robot Schematics Acquired . | . . . . Robots Built . | . . . . Authchips . | . . . . Time . | . . . . Total Robot Build Rating . | . . . . Part Schematics Acquired . | . . . . Parts Built . | . . . . Authchips . | . . . . Time . | . . . . Total Part Build Rating . | . . . . Part Studies Acquired . | . . . . Parts Repaired . | . . . . Time . | . . . . Parts Recycled . | . . . . Recycled Matter . | . . . . Retrieved Matter . | . . . . Retrieved Components 19 | . 19 . . Parts Scanalyzed . | . . . . Part Schematics Acquired . | . . . . Parts Damaged . | . . . . Bothacking | -11 -10 -10 -10 ------------ Run | Yrd Mat Min Sub Used RIF Installer . | . . . . Robots Hacked . | . . . . Non-combat . | . . . . Combat . | . . . . Robot Hacks Applied . | . . . . Relay Couplers Released . | . . . . Fabnet Peak Effective % . | . . . . Robots Rewired . | . . . . Allies Hacked . | . . . . Hacks Repelled . | . . . . Allies | -11 -10 -10 -10 -------- Run | Yrd Mat Min Sub Total Allies 1 | . 1 . . Largest Group 1 | . 1 1 1 Highest-Rated Group 10 | . 10 10 10 Highest-Rated Ally 10 | . 10 10 10 Total Orders 7 | . 1 4 2 STAY 4 | . 1 2 1 FOLLOW 3 | . . 2 1 Ally Attacks . | . . . . Total Damage . | . . . . Kills . | . . . . Allies Corrupted . | . . . . Allies Melted . | . . . . Intel | -11 -10 -10 -10 ------- Run | Yrd Mat Min Sub Active Infowar (turns) 616 | 36 580 . . Terrain 616 | 36 580 . . Robot Analysis Total 6 | . 5 1 . Derelict Logs Recovered 3 | . . 2 1 Drone Launches . | . . . . Drone Recoveries . | . . . . Exploration | -11 -10 -10 -10 ------------- Run | Yrd Mat Min Sub Turns Passed 7503 | 180 3496 1313 2514 Spaces Moved 4007 | 116 1655 797 1439 Core 15 | 15 . . . Treads . | . . . . Legs 1364 | 101 1263 . . Wheels 2628 | . 392 797 1439 Hover . | . . . . Flight . | . . . . Fastest Speed 50 | 50 120 155 130 Average Speed 156 | 116 161 155 154 Slowest Speed 190 | 150 190 155 155 Overloaded Moves . | . . . . Propulsion Burnouts . | . . . . Robots Hopped . | . . . . Potential Cave-ins . | . . . . Cave-ins Triggered . | . . . . Exploration Rate (%) 65 | 5 100 99 59 Regions Visited 3 Branch Regions 2 Pre-discovered Areas 3 | . 2 1 . Known Exits Taken . | . . . . Unknown Exits Taken 3 | 1 1 1 . Scrap Searched 9 | . . 3 6 Spaces Dug 21 | . 11 . 10 Terrain Destroyed 28 | . 11 . 17 Melee 21 | . 11 . 10 Projectile . | . . . . AOE 7 | . . . 7 Terrain Rammed . | . . . . Walls Destroyed . | . . . . Machines Disabled . | . . . . Actions | -11 -10 -10 -10 --------- Run | Yrd Mat Min Sub Total 4935 | 138 2346 850 1601 Wait 628 | . 555 37 36 Move 4004 | 115 1654 796 1439 Hop . | . . . . Pick Up 42 | 6 24 1 11 Fast Attach 11 | 7 4 . . Attach 3 | . . . 3 Detach . | . . . . Swap 55 | . 29 1 25 Drop 32 | . 17 . 15 Fire 94 | 10 34 15 35 Melee 66 | . 29 . 37 Ram . | . . . . Kick . | . . . . Crush . | . . . . Escape Stasis . | . . . . Rewire . | . . . . Trap . | . . . . Miscellaneous . | . . . . Route ------- -11/Scrapyard -10/Materials (discovered 6 exits: [*Mat x3] / *Min x2 / *Sub) -10/Mines (discovered 3 exits: [*Mat x2] / *Sub) -10/Subcaves History --------- Turn | Location | Event 8 | -11/Scrapyard | Discovered new exit (range 16) 181 | -11/Scrapyard | Entered Materials 313 | -10/Materials | Build established: Mutant 593 | -10/Materials | Discovered new exit (range 9) 681 | -10/Materials | Derelicts attacked the area 682 | -10/Materials | Discovered new exit (range 16) 1414 | -10/Materials | Build established: Scavenger-Mutant 1522 | -10/Materials | Discovered new exit (range 7) 1805 | -10/Materials | Discovered new exit (range 9) 2084 | -10/Materials | Discovered new exit (range 12) 2276 | -10/Materials | Discovered new exit (range 10) 2518 | -10/Materials | Build established: Mutant 3677 | -10/Materials | Entered Mines 3677 | -10/Mines | Accompanied by 1 ally 4227 | -10/Mines | Discovered new exit (range 6) 4345 | -10/Mines | Learned location of Zion (-7) 4351 | -10/Mines | Discovered new exit (range 7) 4356 | -10/Mines | Received a Rocket Launcher from a helpful Derelict 4445 | -10/Mines | Discovered new exit (range 15) 4636 | -10/Mines | Found a hidden stash of uninstalled traps 4990 | -10/Mines | Entered Subcaves 4990 | -10/Subcaves | Accompanied by 1 ally 4991 | -10/Subcaves | Approached by a straggling Scientist 5201 | -10/Subcaves | Shifting Twisted Machinery released Spk. Treads 5345 | -10/Subcaves | Shifting Twisted Machinery released Sub. Machine Gun 5395 | -10/Subcaves | Learned Materials stockpile data 5436 | -10/Subcaves | Visited 4L-MR0's lab 5475 | -10/Subcaves | Found Flightbrick 5836 | -10/Subcaves | A swath of the cavern ceiling suddenly collapsed 6740 | -10/Subcaves | A swath of the cavern ceiling suddenly collapsed 6761 | -10/Subcaves | Ambushed by Subdwellers from Twisted Machinery 6998 | -10/Subcaves | Core integrity fell below 50% 7453 | -10/Subcaves | A Subdweller sparked back to life 7453 | -10/Subcaves | A Subdweller sparked back to life 7453 | -10/Subcaves | A Subdweller sparked back to life 7456 | -10/Subcaves | Core integrity fell below 20% 7481 | -10/Subcaves | Found Power Bank 7504 | -10/Subcaves | Destroyed by HO-1YP(R) with Subdweller Machine Gun Last Messages --------------- 07027_ Found 36 Matter. 07030_ Dropped Mining Claw. 07031_ Acquired Mak. Hammer. 07039_ Dropped Sub. Machine Gun. 07043_ Acquired Sub. Machine Gun. 07364_ The unstable cave ceiling collapses. 07371_ Acquired 24 matter. 07453_ 9J-N6C(R) creaks and sparks as it begins to move. 07453_ AT-XNW(R) creaks and sparks as it begins to move. 07453_ DA-JMU(R) creaks and sparks as it begins to move. 07463_ Wheel destroyed. 07465_ 9J-N6C(R) destroyed. 07471_ DA-JMU(R) destroyed. 07474_ AT-XNW(R) destroyed. 07478_ Acquired 31 matter. 07481_ Acquired Power Bank. 07500_ Spread Laser destroyed. Map ----- +----------------------------------------------------+ | ?????????????????????????????????????????????????? | | ?????????????????????????????????????????????????? | | ?????????????????????????????????????????????????? | | ?????????????????????????????????????????????????? | | ?????????????????????????????????????????????????? | | ?????????????????????????????????????????????????? | | ?????????????????????????????????????????????????? | | ?????????????????????????????????????????????????? | | ?????????????????????????????????????????????????? | | ?????????????????????????????????????????????????? | | ?????????????????????????????????????????????????? | | ?????????????????????????????????????????????????? | | ?????????????????????????????????????????????????? | | ???????????####??????????????????????????????????? | | ##????###### ##?????????????????????????????????? | | ##??## ####?####?????????????????????????? | | #### ### ##????????????????????????? | | #???????????? ??????????? | | ###????#???? #??????????? | | #??? ##? $#???????????? | | ##### # #???????????? | | ## ##%#! % #???????????? | | #### ## &%&R!< #???????????? | | # #?## ### !&R & "?????? | | ### #?##### ##?## &#[& " ## ????????? | | ??## #?????# ##???### @## & #?????????????? | | ???#####?????###??????####### "" # #?????????????? | | ?????????????????????????????#"###?#?????????????? | | ?????????????????????????????????????????????????? | | ?????????????????????????????????????????????????? | | ?????????????????????????????????????????????????? | | ?????????????????????????????????????????????????? | | ?????????????????????????????????????????????????? | | ?????????????????????????????????????????????????? | | ?????????????????????????????????????????????????? | | ?????????????????????????????????????????????????? | | ?????????????????????????????????????????????????? | | ?????????????????????????????????????????????????? | | ?????????????????????????????????????????????????? | | ?????????????????????????????????????????????????? | | ?????????????????????????????????????????????????? | | ?????????????????????????????????????????????????? | | ?????????????????????????????????????????????????? | | ?????????????????????????????????????????????????? | | ?????????????????????????????????????????????????? | | ?????????????????????????????????????????????????? | | ?????????????????????????????????????????????????? | | ?????????????????????????????????????????????????? | | ?????????????????????????????????????????????????? | | ?????????????????????????????????????????????????? | +----------------------------------------------------+ Best States ------------- Heat Dissipation 35 Energy Generation 10 Energy Capacity 250 Matter Stores 300 Matter Capacity 300 Sight Range 16 Terrain Scan Range 16 Terrain Scan Density 10 Armor Coverage 150 Evasion (%) 55 Recoil Reduction 1 Item Schematics ----------------- None Robot Schematics ------------------ None Fabricated ------------ Nothing Repaired ---------- Nothing Studied --------- None Alien Tech Used ----------------- None Achievements -------------- None Challenges ------------ None Game ------ Seed CoilAntimissileNanovents Manual? 0 Play Time 00:47:46 Cumulative 701.8 hours Start 2025.11.16 @ 21:04:52 End 2025.11.16 @ 22:43:23 Sessions 1 Manual Loads 0 Difficulty Rogue Special Mode None Game No. 492 Rogue 492 Adventurer 0 Explorer 0 Win Type - Total 1 Types 1/0/0/0/0/0/0/0/0/0 Lore% 68 Gallery% 67 Achievement% 45 Wizard Run 0 Options --------- Layout 1 ASCII 0 Keyboard 0 Movement Mouse Keybinds 0 Fullscreen 1 Font 20/SmallcapsGlow Map View 54x42 Zoom Use 0% Tactical HUD 1 Map Filters NONE Filters NONE Steam 1 RUN: a0370f9b-628a-452a-84eb-eaaed4f21cfc